Workbook

Sheet Tenant_Summary
O1: =TotalGLA -> 20370
A3: 1899 | B3: Suite | C3: Tenant | D3: GLA | E3: % of GLA | F3: Lease Commence | G3: Lease Expire | H3: Annual Rent | I3: Rent/ SF | J3: Changes On | K3: Changes To | L3: Expense Reimbursement | M3: Other: Options/ %Rent | N3: Lease Type
A4: 2015 | B4: 100 | C4: JC Spa | D4: 1430 | E4: =D4/TotalGLA -> 0.07020127639 | F4: 2010-10-12 | G4: 2015-10-31 | H4: 25740 | I4: =IFERROR((H4/D4),"") -> 18 | J4: N/A | K4: N/A | L4: 5720 | M4: None | N4: NNN
A5: 1899 | B5: 200 | C5: Diamond Pharmacy | D5: 1560 | E5: 0.0765832106 | F5: 2008-03-03 | H5: 36480 | I5: 23.38461538 | J5: N/A | K5: N/A | L5: 6240 | M5: None | N5: NNN
A6: 2023 | B6: 300 | C6: Shop & Go | D6: 2000 | E6: 0.09818360334 | F6: 2011-03-01 | G6: 2023-12-31 | H6: 36000 | I6: 18 | J6: 2017-03-01 | K6: 38400 | L6: 8000 | M6: None | N6: NNN
A7: 1899 | E7: 0 | J7: 2020-03-01 | K7: 40800 | M7: None | N7: NNN
A8: 1899 | E8: 0 | J8: 2022-03-01 | K8: 43200 | M8: None | N8: NNN
A9: 2014 | B9: 400 | C9: Foot Spa | D9: 1500 | E9: 0.0736377025 | F9: 2013-06-01 | G9: 2014-12-31 | H9: 11520 | I9: 7.68 | J9: N/A | K9: N/A | L9: 6000 | M9: None | N9: NNN
A10: 2018 | B10: 2 | C10: Vacant | D10: 2500 | E10: 0.1227295042 | F10: 1995-05-19 | G10: 2018-05-25 | H10: 2050 | I10: 0.82 | J10: N/A | K10: N/A | L10: 6000 | M10: None | N10: NNN
A11: 2018 | B11: 3 | C11: Jackies | D11: 3000 | E11: =D11/TotalGLA -> 0.147275405 | F11: 2000-04-15 | G11: 2018-05-26 | H11: 2500 | I11: 0.8333333333 | J11: N/A | K11: N/A | L11: 6000 | M11: None | N11: NNN
A12: 2018 | B12: 4 | C12: Johnathan BB1 | D12: 850 | E12: 0.04172803142 | F12: 2016-08-14 | G12: 2018-05-27 | H12: 800 | I12: 0.9411764706 | J12: N/A | K12: N/A | L12: 6000 | M12: None | N12: NNN
A13: 2018 | B13: 5 | C13: Target | D13: 1230 | E13: 0.06038291605 | F13: 2003-05-26 | G13: 2018-05-28 | H13: 1226 | I13: 0.9967479675 | J13: N/A | K13: N/A | L13: 6000 | M13: None | N13: NNN
A14: 2018 | B14: 6 | C14: Bed Bath and Beyond | D14: 2500 | E14: 0.1227295042 | F14: 2022-02-22 | G14: 2018-05-29 | H14: 2000 | I14: 0.8 | J14: N/A | K14: N/A | L14: 6000 | M14: None | N14: NNN
A15: 2018 | B15: 7 | C15: Wonderbread | D15: 1500 | E15: 0.0736377025 | F15: 2016-08-14 | G15: 2018-05-30 | H15: 1300 | I15: 0.8666666667 | J15: N/A | K15: N/A | L15: 6000 | M15: None | N15: NNN
A16: 2021 | B16: 10 | C16: Dackson | D16: 2300 | E16: 0.1129111438 | F16: 2005-09-15 | G16: 2021-09-14 | H16: 2300 | I16: 1 | J16: N/A | K16: N/A | L16: 6000 | M16: None | N16: NNN
A17: 1899 | E17: =D17/TotalGLA -> 0
A18: 777 | C18: TOTAL AVAILABLE | D18: =totalAvailableGLA() -> 2018 | E18: =D18/D20 -> 0.09906725577 | H18: =TotalRentAvailable() -> 2050 | L18: =IF(TotalReimExAvailable()=0,"",TotalReimExAvailable()) -> 6000
A19: 1899 | C19: TOTAL OCCUPIED | D19: =TotalOccupiedGLA() -> 18352 | E19: =D19/D20 -> 0.9009327442 | H19: =TotalRentOccupied() -> 119866 | L19: =IF(TotalReimExOccupied()=0,"",TotalReimExOccupied()) -> 61960
A20: 1899 | C20: TOTAL | D20: =SUM(D18:D19) -> 20370 | E20: =SUM(E18:E19) -> 1 | H20: =SUM(H18:H19) -> 121916 | L20: =IF(SUM(L18:L19)=0,"",SUM(L18:L19)) -> 67960 | N20: 0
A21: 1899
A22: 1899
A23: 1899
A24: 1899
A25: 1899
A26: 1899
A27: 1899
A28: 1899
A29: 1899
A30: 1899
A31: 1899
A32: 1899
A33: 1899
A34: 1899
A35: 1899
A36: 1899
A37: 1899
A38: 1899
A39: 1899
A40: 1899
A41: 1899
A42: 1899
A43: 1899
A44: 1899
A45: 1899
A46: 1899
A47: 1899
A48: 1899
A49: 1899
A50: 1899
A51: 1899
A52: 1899
A53: 1899
A54: 1899
A55: 1899
A56: 1899
A57: 1899
A58: 1899
A59: 1899
A60: 1899
A61: 1899
A62: 1899
A63: 1899
A64: 1899
A65: 1899
A66: 1899
A67: 1899
A68: 1899
A69: 1899
A70: 1899
A71: 1899
A72: 1899
A73: 1899
A74: 1899
A75: 1899
A76: 1899
A77: 1899
A78: 1899
A79: 1899
A80: 1899
A81: 1899
A82: 1899
A83: 1899
A84: 1899
A85: 1899
A86: 1899
A87: 1899
A88: 1899
A89: 1899
A90: 1899
A91: 1899
A92: 1899
A93: 1899
A94: 1899
A95: 1899
A96: 1899
A97: 1899
A98: 1899
A99: 1899
A100: 1899
A101: 1899
A102: 1899
A103: 1899
A104: 1899
A105: 1899
A106: 1899
A107: 1899
A108: 1899
A109: 1899
A110: 1899
A111: 1899
A112: 1899

Sheet Lease_Expiration_Summary
O1: 20370 | R1: Month/Year | S1: =TEXT(TODAY(),"mmm") &" " & C3 -> Dec 2014 | T1: Dec 2015 | U1: Dec 2016 | V1: Dec 2017 | W1: Dec 2018 | X1: Dec 2019 | Y1: Dec 2020 | Z1: Dec 2021 | AA1: Dec 2022 | AB1: Dec 2023
C2: 3 | D2: 4 | E2: 5 | F2: 6 | G2: 7 | H2: 8 | I2: 9 | J2: 10 | K2: 11 | L2: 12 | R2: Number of Tenants Expiring | S2: =C16 -> 1 | T2: 1 | W2: 5 | Z2: 1 | AB2: 1
C3: 2014 | D3: 2015 | E3: 2016 | F3: 2017 | G3: 2018 | H3: 2019 | I3: 2020 | J3: 2021 | K3: 2022 | L3: 2023 | R3: Percentage of SF Expiring | S3: =C18 -> 0.0736377025 | T3: 0.07020127639 | W3: 0.4457535592 | Z3: 0.1129111438 | AB3: 0.09818360334
B4: For The Year Beginning | C4: Year 1 Jan 2014 | D4: Year 2 Jan 2015 | E4: Year 3 Jan 2016 | F4: Year 4 Jan 2017 | G4: Year 5 Jan 2018 | H4: Year 6 Jan 2019 | I4: Year 7 Jan 2020 | J4: Year 8 Jan 2021 | K4: Year 9 Jan 2022 | L4: Year 10 Jan 2023 | R4: Cumulative % of SF Expiring | S4: 0.0736377025 | T4: 0.1438389789 | W4: 0.589592538 | Z4: 0.7025036819 | AB4: 0.8006872852
B5: Tenant(s) Name | C5: Foot Spa | D5: JC Spa | G5: Jackies | J5: Dackson | L5: Shop & Go
G6: Johnathan BB1
G7: Target
G8: Bed Bath and Beyond
G9: Wonderbread
B16: Total Number of Tenants | C16: =LESTotalTenants(C2) -> 1 | D16: =LESTotalTenants(D2) -> 1 | E16: =LESTotalTenants(E2) ->  | F16: =LESTotalTenants(F2) ->  | G16: =LESTotalTenants(G2) -> 5 | H16: =LESTotalTenants(H2) ->  | J16: =LESTotalTenants(J2) -> 1 | K16: =LESTotalTenants(K2) ->  | L16: =LESTotalTenants(L2) -> 1
B17: Total Square Feet | C17: 1500 | D17: 1430 | G17: 9080 | J17: 2300 | L17: 2000
B18: Total Percentage | C18: =IF((C17/$O$1)=0,"",(C17/$O$1)) -> 0.0736377025 | D18: =IF((D17/$O$1)=0,"",(D17/$O$1)) -> 0.07020127639 | F18: =IF((F17/$O$1)=0,"",(F17/$O$1)) ->  | G18: =IF((G17/$O$1)=0,"",(G17/$O$1)) -> 0.4457535592 | J18: 0.1129111438 | L18: 0.09818360334
B19: Cumulative Percentage | C19: =IF(C18="","",(SUM($C$18:C18))) -> 0.0736377025 | D19: =IF(D18="","",(SUM($C$18:D18))) -> 0.1438389789 | E19: =IF(E18="","",(SUM($C$18:E18))) ->  | F19: =IF(F18="","",(SUM($C$18:F18))) ->  | G19: =IF(G18="","",(SUM($C$18:G18))) -> 0.589592538 | H19: =IF(H18="","",(SUM($C$18:H18))) ->  | I19: =IF(I18="","",(SUM($C$18:I18))) ->  | J19: =IF(J18="","",(SUM($C$18:J18))) -> 0.7025036819 | K19: =IF(K18="","",(SUM($C$18:K18))) ->  | L19: =IF(L18="","",(SUM($C$18:L18))) -> 0.8006872852
N24: Resize LES
N25: Clear and add rows
R50: Any projections, opinions, assumptions or estimates used here within are for example purposes only and do not represent the current or future performance of the property.

Sheet TestTenantMix (hidden)
D9: 1 | E9: Jeanelles | F9: 450 | G9: =F9/TotalGLA -> 0.02209131075 | H9: 2012-04-25 | I9: 2017-04-22 | J9: 900 | K9: =IFERROR((J9/F9),"") -> 2 | P9: NNN
D10: 2 | E10: Vacant | F10: 2500 | G10: 0.1227295042 | H10: 1995-05-19 | I10: 2018-05-25 | J10: 2050 | K10: 0.82 | P10: NNN
D11: 3 | E11: Jackies | F11: 3000 | G11: =F11/TotalGLA -> 0.147275405 | H11: 2000-04-15 | I11: 2018-05-26 | J11: 2500 | K11: 0.8333333333 | P11: NNN
D12: 4 | E12: Johnathan BB1 | F12: 850 | G12: 0.04172803142 | H12: 2016-08-14 | I12: 2018-05-27 | J12: 800 | K12: 0.9411764706 | P12: NNN
D13: 5 | E13: Target | F13: 1230 | G13: 0.06038291605 | H13: 2003-05-26 | I13: 2018-05-28 | J13: 1226 | K13: 0.9967479675 | P13: NNN
D14: 6 | E14: Bed Bath and Beyond | F14: 2500 | G14: 0.1227295042 | H14: 2022-02-22 | I14: 2018-05-29 | J14: 2000 | K14: 0.8 | P14: NNN
D15: 7 | E15: Wonderbread | F15: 1500 | G15: 0.0736377025 | H15: 2016-08-14 | I15: 2018-05-30 | J15: 1300 | K15: 0.8666666667 | P15: NNN
D16: 10 | E16: Dackson | F16: 2300 | G16: 0.1129111438 | H16: 2005-09-15 | I16: 2021-09-14 | J16: 2300 | K16: 1 | P16: NNN
E24: 100 | F24: JC Spa | G24: 1430 | H24: =G24/TotalGLA -> 0.07020127639 | I24: 2010-10-12 | J24: 2015-10-31 | K24: 25740 | L24: =IFERROR((K24/G24),"") -> 18 | M24: N/A | N24: N/A | O24: 5720 | P24: None | Q24: NNN
E25: 200 | F25: Diamond Pharmacy | G25: 1560 | H25: 0.0765832106 | I25: 2008-03-03 | K25: 36480 | L25: 23.38461538 | M25: N/A | N25: N/A | O25: 6240 | P25: None | Q25: NNN
E26: 300 | F26: Shop & Go | G26: 2000 | H26: 0.09818360334 | I26: 2011-03-01 | J26: 2023-12-31 | K26: 36000 | L26: 18 | M26: 2017-03-01 | N26: 38400 | O26: 8000 | P26: None
H27: 0 | M27: 2020-03-01 | N27: 40800
H28: 0 | M28: 2022-03-01 | N28: 43200
E29: 400 | F29: Foot Spa | G29: 1500 | H29: 0.0736377025 | I29: 2013-06-01 | J29: 2014-12-31 | K29: 11520 | L29: 7.68 | M29: N/A | N29: N/A | O29: 6000 | P29: None
E30: 500 | F30: Taco Stand | G30: 0 | H30: 0 | K30: 6300 | M30: N/A | N30: N/A | P30: None
H31: 0
H32: 0
H33: 0
H34: 0
H35: 0
H36: 0
H37: 0
H38: 0
H39: 0
H40: 0
H41: 0
